[Event "*** Titled Tuesday Blitz"]
[Site "Chess.com"]
[Date "2020.05.26"]
[Round "4"]
[White "DucksParadise"]
[Black "ArnieChipmunk"]
[Result "0-1"]
[WhiteElo "2042"]
[BlackElo "2278"]
[TimeControl "180+1"]
[EndTime "10:37:01 PDT"]
[Termination "ArnieChipmunk won by resignation"]

1. e4 {[%clk 0:03:00.9]} 1... e5 {[%clk 0:02:59.3]} 2. Nf3 {[%clk 0:02:55.3]}
2... d6 {[%clk 0:02:57]} 3. d4 {[%clk 0:02:54.8]} 3... f5 {[%clk 0:02:57]} 4.
exf5 {[%clk 0:02:32.7]} 4... e4 {[%clk 0:02:56.7]} 5. Ng5 {[%clk 0:02:32.6]}
5... Bxf5 {[%clk 0:02:52]} 6. g4 {[%clk 0:02:20]} 6... h6 {[%clk 0:02:50.2]} 7.
Nh3 {[%clk 0:02:08.9]} 7... Bd7 {[%clk 0:02:45.7]} 8. Nf4 {[%clk 0:02:05.7]}
8... Nf6 {[%clk 0:02:40]} 9. Be2 {[%clk 0:02:03.8]} 9... Nc6 {[%clk 0:02:33.8]}
10. Ng6 {[%clk 0:01:56.9]} 10... Rg8 {[%clk 0:02:31.4]} 11. f4 {[%clk
0:01:32.1]} 11... d5 {[%clk 0:02:13.7]} 12. O-O {[%clk 0:01:17.3]} 12... Bd6
{[%clk 0:02:04.1]} 13. f5 {[%clk 0:01:16.8]} 13... Ne7 {[%clk 0:01:53.9]} 14.
Nf4 {[%clk 0:00:55.1]} 14... g5 {[%clk 0:01:47.3]} 15. fxg6 {[%clk 0:00:52.5]}
15... Nxg6 {[%clk 0:01:42.7]} 16. Nxg6 {[%clk 0:00:52.2]} 16... Rxg6 {[%clk
0:01:42.8]} 17. Kh1 {[%clk 0:00:32.8]} 17... Qe7 {[%clk 0:01:42.6]} 18. h3
{[%clk 0:00:23.7]} 18... O-O-O {[%clk 0:01:42.1]} 19. Nc3 {[%clk 0:00:22.1]}
19... Rdg8 {[%clk 0:01:40.1]} 20. Bf4 {[%clk 0:00:19.9]} 20... h5 {[%clk
0:01:35.8]} 21. gxh5 {[%clk 0:00:09.3]} 21... Rg3 {[%clk 0:01:35.6]} 22. Bxg3
{[%clk 0:00:08.7]} 22... Rxg3 {[%clk 0:01:34.4]} 23. Bg4 {[%clk 0:00:08.4]}
23... Nxg4 {[%clk 0:01:33]} 0-1

[Event "*** Titled Tuesday Blitz"]
[Site "Chess.com"]
[Date "2020.05.26"]
[Round "4"]
[White "ValeriyGrinev"]
[Black "ulkaf961"]
[Result "1-0"]
[WhiteElo "2575"]
[BlackElo "2198"]
[TimeControl "180+1"]
[EndTime "10:37:02 PDT"]
[Termination "ValeriyGrinev won by resignation"]

1. c4 {[%clk 0:03:00.9]} 1... c6 {[%clk 0:02:54.2]} 2. e4 {[%clk 0:03:00]} 2...
d5 {[%clk 0:02:52.7]} 3. exd5 {[%clk 0:03:00.3]} 3... cxd5 {[%clk 0:02:52.6]} 4.
d4 {[%clk 0:02:57.7]} 4... Nf6 {[%clk 0:02:51.3]} 5. Nc3 {[%clk 0:02:57.2]} 5...
g6 {[%clk 0:02:06.1]} 6. cxd5 {[%clk 0:02:55.5]} 6... Bg7 {[%clk 0:02:03.1]} 7.
Qb3 {[%clk 0:02:54.8]} 7... O-O {[%clk 0:02:00.1]} 8. Be2 {[%clk 0:02:55.3]}
8... Nbd7 {[%clk 0:01:57.2]} 9. Bf3 {[%clk 0:02:54.5]} 9... Nb6 {[%clk
0:01:56.7]} 10. a4 {[%clk 0:02:55]} 10... a5 {[%clk 0:01:54.1]} 11. Nge2 {[%clk
0:02:54.1]} 11... e6 {[%clk 0:01:53.7]} 12. dxe6 {[%clk 0:02:49.7]} 12... Bxe6
{[%clk 0:01:53.3]} 13. Qd1 {[%clk 0:02:50.2]} 13... Bc4 {[%clk 0:01:41.3]} 14.
O-O {[%clk 0:02:49.2]} 14... Re8 {[%clk 0:01:39.8]} 15. b3 {[%clk 0:02:48.4]}
15... Ba6 {[%clk 0:01:39.1]} 16. Re1 {[%clk 0:02:47.4]} 16... Rc8 {[%clk
0:01:33]} 17. Ba3 {[%clk 0:02:44.6]} 17... Nfd5 {[%clk 0:01:27]} 18. Nb5 {[%clk
0:02:27.3]} 18... Bxb5 {[%clk 0:01:12.5]} 19. axb5 {[%clk 0:02:28.2]} 19... Qd7
{[%clk 0:01:12.7]} 20. Qd3 {[%clk 0:02:22]} 20... a4 {[%clk 0:00:40.8]} 21. Bc5
{[%clk 0:02:15.6]} 21... axb3 {[%clk 0:00:33.7]} 22. Qxb3 {[%clk 0:02:16.5]}
22... Ra8 {[%clk 0:00:18]} 23. h3 {[%clk 0:01:57.6]} 23... Rxa1 {[%clk
0:00:16.7]} 24. Rxa1 {[%clk 0:01:58.5]} 24... Qf5 {[%clk 0:00:16.2]} 25. Nc3
{[%clk 0:01:52.1]} 25... Nxc3 {[%clk 0:00:14.8]} 26. Qxc3 {[%clk 0:01:53]} 26...
Nd5 {[%clk 0:00:14.2]} 27. Bxd5 {[%clk 0:01:44.5]} 27... Qxd5 {[%clk 0:00:14.3]}
28. Re1 {[%clk 0:01:39]} 28... Rxe1+ {[%clk 0:00:14]} 29. Qxe1 {[%clk
0:01:39.9]} 29... Bxd4 {[%clk 0:00:13.7]} 30. Qe8+ {[%clk 0:01:39.8]} 30... Kg7
{[%clk 0:00:13.5]} 31. Qf8+ {[%clk 0:01:39.6]} 31... Kf6 {[%clk 0:00:13.3]} 32.
Bxd4+ {[%clk 0:01:40.2]} 1-0

[Event "*** Titled Tuesday Blitz"]
[Site "Chess.com"]
[Date "2020.05.26"]
[Round "4"]
[White "MaxLeto"]
[Black "emiliocordova"]
[Result "0-1"]
[WhiteElo "2330"]
[BlackElo "2715"]
[TimeControl "180+1"]
[EndTime "10:37:05 PDT"]
[Termination "emiliocordova won by checkmate"]

1. g4 {[%clk 0:03:00.4]} 1... d5 {[%clk 0:02:59.5]} 2. Bg2 {[%clk 0:03:00.2]}
2... c6 {[%clk 0:02:59.8]} 3. g5 {[%clk 0:02:58.8]} 3... e5 {[%clk 0:02:59.8]}
4. d4 {[%clk 0:02:59.1]} 4... e4 {[%clk 0:02:59.6]} 5. c4 {[%clk 0:02:57.6]}
5... h6 {[%clk 0:02:58.7]} 6. h4 {[%clk 0:02:50.3]} 6... hxg5 {[%clk 0:02:58.7]}
7. Bxg5 {[%clk 0:02:46.4]} 7... Qb6 {[%clk 0:02:53.5]} 8. Qd2 {[%clk 0:02:39.3]}
8... Nh6 {[%clk 0:02:37.6]} 9. Nc3 {[%clk 0:02:31.3]} 9... Be6 {[%clk
0:02:37.2]} 10. Nh3 {[%clk 0:02:25.9]} 10... Nf5 {[%clk 0:02:31.9]} 11. c5
{[%clk 0:02:10.3]} 11... Qb4 {[%clk 0:02:17.5]} 12. O-O-O {[%clk 0:01:59.9]}
12... f6 {[%clk 0:02:06.4]} 13. Be3 {[%clk 0:00:58.3]} 13... Na6 {[%clk
0:01:58.9]} 14. Nf4 {[%clk 0:00:55.4]} 14... Bf7 {[%clk 0:01:58.9]} 15. h5
{[%clk 0:00:45.6]} 15... b6 {[%clk 0:01:55.4]} 16. a3 {[%clk 0:00:45]} 16... Qb3
{[%clk 0:01:54.1]} 17. cxb6 {[%clk 0:00:33.6]} 17... axb6 {[%clk 0:01:52.5]} 18.
Qc2 {[%clk 0:00:34.1]} 18... Qxc2+ {[%clk 0:01:42.4]} 19. Kxc2 {[%clk 0:00:35]}
19... Nxe3+ {[%clk 0:01:42.9]} 20. fxe3 {[%clk 0:00:35.1]} 20... b5 {[%clk
0:01:40.1]} 21. b4 {[%clk 0:00:34]} 21... Nb8 {[%clk 0:01:36.9]} 22. Kb3 {[%clk
0:00:33.4]} 22... Nd7 {[%clk 0:01:37]} 23. a4 {[%clk 0:00:32.3]} 23... bxa4+
{[%clk 0:01:35.5]} 24. Nxa4 {[%clk 0:00:33.2]} 24... Rb8 {[%clk 0:01:35.5]} 25.
Kc2 {[%clk 0:00:18.3]} 25... Rxb4 {[%clk 0:01:33.6]} 26. Ra1 {[%clk 0:00:14.5]}
26... Rc4+ {[%clk 0:01:32.8]} 27. Kb3 {[%clk 0:00:13]} 27... Bd6 {[%clk
0:01:32.3]} 28. Bh3 {[%clk 0:00:09.1]} 28... Ke7 {[%clk 0:01:27.4]} 29. Bxd7
{[%clk 0:00:09]} 29... Rb8+ {[%clk 0:01:26.5]} 30. Ka2 {[%clk 0:00:08.5]} 30...
Rxa4# {[%clk 0:01:26]} 0-1

[Event "*** Titled Tuesday Blitz"]
[Site "Chess.com"]
[Date "2020.05.26"]
[Round "4"]
[White "avantage_ru"]
[Black "S_Kalvaitis"]
[Result "1-0"]
[WhiteElo "2709"]
[BlackElo "2327"]
[TimeControl "180+1"]
[EndTime "10:37:07 PDT"]
[Termination "avantage_ru won by resignation"]

1. Nc3 {[%clk 0:03:00.9]} 1... Nf6 {[%clk 0:02:57.7]} 2. g3 {[%clk 0:03:00.1]}
2... d5 {[%clk 0:02:55.2]} 3. Bg2 {[%clk 0:03:00.6]} 3... e5 {[%clk 0:02:53.1]}
4. d3 {[%clk 0:02:59.6]} 4... Be6 {[%clk 0:02:48.7]} 5. Nf3 {[%clk 0:02:57.7]}
5... Nbd7 {[%clk 0:02:46]} 6. Ng5 {[%clk 0:02:57.4]} 6... Bb4 {[%clk 0:02:40.9]}
7. Nxe6 {[%clk 0:02:56.2]} 7... fxe6 {[%clk 0:02:41.8]} 8. O-O {[%clk
0:02:55.7]} 8... O-O {[%clk 0:02:41.6]} 9. e3 {[%clk 0:02:52.1]} 9... c6 {[%clk
0:02:40.2]} 10. Ne2 {[%clk 0:02:49.4]} 10... Qc7 {[%clk 0:02:29.9]} 11. a3
{[%clk 0:02:49]} 11... Bc5 {[%clk 0:02:26]} 12. b3 {[%clk 0:02:46.9]} 12... Rae8
{[%clk 0:02:23.2]} 13. Bb2 {[%clk 0:02:46.8]} 13... Qd6 {[%clk 0:02:07.2]} 14.
c4 {[%clk 0:02:43.9]} 14... a5 {[%clk 0:02:02.1]} 15. Qc2 {[%clk 0:02:34.9]}
15... d4 {[%clk 0:01:39]} 16. exd4 {[%clk 0:02:22.6]} 16... Bxd4 {[%clk
0:01:37.9]} 17. Nxd4 {[%clk 0:02:19]} 17... exd4 {[%clk 0:01:37.5]} 18. b4
{[%clk 0:02:19.2]} 18... e5 {[%clk 0:01:23.9]} 19. Qb3 {[%clk 0:02:05.2]} 19...
Kh8 {[%clk 0:01:17.8]} 20. Rae1 {[%clk 0:02:04.8]} 20... axb4 {[%clk 0:00:58.5]}
21. axb4 {[%clk 0:02:04.2]} 21... Qe6 {[%clk 0:00:40]} 22. Bxd4 {[%clk
0:02:01.1]} 22... Qf5 {[%clk 0:00:32.1]} 23. Bb2 {[%clk 0:01:56.9]} 23... Ng4
{[%clk 0:00:31.8]} 24. Qc2 {[%clk 0:01:44.4]} 24... h5 {[%clk 0:00:30.4]} 25.
Qe2 {[%clk 0:01:38.6]} 25... Rf6 {[%clk 0:00:20.4]} 26. h3 {[%clk 0:01:36.3]}
26... Nh6 {[%clk 0:00:20.7]} 27. Bc1 {[%clk 0:01:19.4]} 27... Kh7 {[%clk
0:00:14.1]} 28. Be4 {[%clk 0:01:17.8]} 28... Qxe4 {[%clk 0:00:14.2]} 1-0

[Event "*** Titled Tuesday Blitz"]
[Site "Chess.com"]
[Date "2020.05.26"]
[Round "4"]
[White "doctorcristian"]
[Black "Koalaskakistis"]
[Result "1-0"]
[WhiteElo "2300"]
[BlackElo "2443"]
[TimeControl "180+1"]
[EndTime "10:37:07 PDT"]
[Termination "doctorcristian won by resignation"]

1. d4 {[%clk 0:03:00.9]} 1... f5 {[%clk 0:02:57.9]} 2. g3 {[%clk 0:02:58.5]}
2... Nf6 {[%clk 0:02:57.3]} 3. Bg2 {[%clk 0:02:57.3]} 3... e6 {[%clk 0:02:56.6]}
4. Nh3 {[%clk 0:02:54.6]} 4... Be7 {[%clk 0:02:53.7]} 5. O-O {[%clk 0:02:53.1]}
5... O-O {[%clk 0:02:54]} 6. Nd2 {[%clk 0:02:52.6]} 6... d5 {[%clk 0:02:52.9]}
7. Nf3 {[%clk 0:02:51.5]} 7... c5 {[%clk 0:02:48.9]} 8. c3 {[%clk 0:02:49.8]}
8... Nc6 {[%clk 0:02:47.2]} 9. Nf4 {[%clk 0:02:48.9]} 9... c4 {[%clk 0:02:41.6]}
10. h4 {[%clk 0:02:36.5]} 10... Bd7 {[%clk 0:02:36.3]} 11. b3 {[%clk 0:02:35.8]}
11... b5 {[%clk 0:02:35.6]} 12. Ng5 {[%clk 0:02:32]} 12... Qc8 {[%clk
0:02:25.6]} 13. bxc4 {[%clk 0:02:25.5]} 13... bxc4 {[%clk 0:02:23.8]} 14. a4
{[%clk 0:01:54.6]} 14... h6 {[%clk 0:02:03.7]} 15. Nf3 {[%clk 0:01:53.6]} 15...
Ne4 {[%clk 0:02:04.2]} 16. Qc2 {[%clk 0:01:51.5]} 16... Bd6 {[%clk 0:01:51.9]}
17. Ng6 {[%clk 0:01:49.4]} 17... Re8 {[%clk 0:01:37.1]} 18. Bf4 {[%clk
0:01:40.3]} 18... Bxf4 {[%clk 0:01:27.1]} 19. gxf4 {[%clk 0:01:34.6]} 19... Na5
{[%clk 0:01:27.5]} 20. Nfe5 {[%clk 0:01:13.1]} 20... Nb3 {[%clk 0:01:24.6]} 21.
Ra2 {[%clk 0:01:12.4]} 21... Rb8 {[%clk 0:01:15.2]} 22. Kh2 {[%clk 0:00:45.7]}
22... Rd8 {[%clk 0:00:59.5]} 23. Ne7+ {[%clk 0:00:42]} 1-0

[Event "*** Titled Tuesday Blitz"]
[Site "Chess.com"]
[Date "2020.05.26"]
[Round "4"]
[White "marszach123"]
[Black "AungTZ"]
[Result "0-1"]
[WhiteElo "2190"]
[BlackElo "1993"]
[TimeControl "180+1"]
[EndTime "10:37:09 PDT"]
[Termination "AungTZ won by resignation"]

1. e4 {[%clk 0:03:00.9]} 1... c5 {[%clk 0:02:55.9]} 2. Nf3 {[%clk 0:02:58.6]}
2... Nc6 {[%clk 0:02:55.6]} 3. d4 {[%clk 0:02:59]} 3... cxd4 {[%clk 0:02:55.5]}
4. Nxd4 {[%clk 0:02:59.6]} 4... Nf6 {[%clk 0:02:56.1]} 5. Nc3 {[%clk 0:03:00.1]}
5... d6 {[%clk 0:02:56]} 6. Bg5 {[%clk 0:02:59.6]} 6... e6 {[%clk 0:02:54.3]} 7.
Qd2 {[%clk 0:02:56.2]} 7... a6 {[%clk 0:02:53.7]} 8. Nxc6 {[%clk 0:02:54.9]}
8... bxc6 {[%clk 0:02:52.3]} 9. O-O-O {[%clk 0:02:55.3]} 9... Be7 {[%clk
0:02:46.6]} 10. Bxf6 {[%clk 0:02:52]} 10... gxf6 {[%clk 0:02:44.4]} 11. Bc4
{[%clk 0:02:49.4]} 11... Rb8 {[%clk 0:02:42.6]} 12. Bb3 {[%clk 0:02:41.1]} 12...
O-O {[%clk 0:02:35.8]} 13. Kb1 {[%clk 0:02:34.9]} 13... Kh8 {[%clk 0:02:35]} 14.
Qh6 {[%clk 0:02:30.9]} 14... Rg8 {[%clk 0:02:29.7]} 15. Rd3 {[%clk 0:02:27.8]}
15... Rg6 {[%clk 0:02:26.3]} 16. Qh5 {[%clk 0:02:28.1]} 16... Qg8 {[%clk
0:02:22.4]} 17. Rg3 {[%clk 0:02:22.2]} 17... d5 {[%clk 0:02:05.4]} 18. exd5
{[%clk 0:02:00.6]} 18... cxd5 {[%clk 0:02:05.1]} 19. Re1 {[%clk 0:01:58.4]}
19... Bd6 {[%clk 0:01:59.7]} 20. Rxg6 {[%clk 0:01:56.1]} 20... Qxg6 {[%clk
0:01:58.7]} 21. Qh4 {[%clk 0:01:51.4]} 21... Rb4 {[%clk 0:01:48.9]} 22. Qh3
{[%clk 0:01:36.8]} 22... Bb7 {[%clk 0:01:36.9]} 23. a3 {[%clk 0:01:23.4]} 23...
Rxb3 {[%clk 0:01:33.6]} 24. Qe3 {[%clk 0:00:49.4]} 24... Bxa3 {[%clk 0:01:19.6]}
25. Qd4 {[%clk 0:00:32.6]} 25... Bxb2 {[%clk 0:01:09.7]} 0-1

[Event "*** Titled Tuesday Blitz"]
[Site "Chess.com"]
[Date "2020.05.26"]
[Round "4"]
[White "Dmitry_M1"]
[Black "PetrolulSah"]
[Result "0-1"]
[WhiteElo "2390"]
[BlackElo "2214"]
[TimeControl "180+1"]
[EndTime "10:37:12 PDT"]
[Termination "PetrolulSah won by resignation"]

1. d4 {[%clk 0:03:00.9]} 1... Nf6 {[%clk 0:02:59.3]} 2. c4 {[%clk 0:03:00.5]}
2... c6 {[%clk 0:02:59.3]} 3. Nf3 {[%clk 0:02:59.3]} 3... d5 {[%clk 0:02:59.1]}
4. Nc3 {[%clk 0:02:59.8]} 4... dxc4 {[%clk 0:02:58.3]} 5. a4 {[%clk 0:02:59.6]}
5... Bf5 {[%clk 0:02:57]} 6. e3 {[%clk 0:02:59.4]} 6... e6 {[%clk 0:02:55.4]} 7.
Bxc4 {[%clk 0:02:59.4]} 7... Nbd7 {[%clk 0:02:53.2]} 8. O-O {[%clk 0:02:57.7]}
8... Bb4 {[%clk 0:02:53]} 9. Qe2 {[%clk 0:02:57.5]} 9... O-O {[%clk 0:02:51.9]}
10. e4 {[%clk 0:02:54.4]} 10... Bg4 {[%clk 0:02:43.1]} 11. Bg5 {[%clk
0:02:45.4]} 11... Nb6 {[%clk 0:02:32.6]} 12. e5 {[%clk 0:01:57.3]} 12... h6
{[%clk 0:02:31.4]} 13. exf6 {[%clk 0:01:50.3]} 13... hxg5 {[%clk 0:02:30.9]} 14.
fxg7 {[%clk 0:01:50.4]} 14... Kxg7 {[%clk 0:02:26.4]} 15. Bb3 {[%clk 0:01:20.2]}
15... Qf6 {[%clk 0:02:07.8]} 16. Rad1 {[%clk 0:01:10.6]} 16... Bxf3 {[%clk
0:02:06.8]} 17. gxf3 {[%clk 0:01:11]} 17... Nd5 {[%clk 0:02:05.1]} 18. Ne4
{[%clk 0:01:02.7]} 18... Qf4 {[%clk 0:01:54.1]} 19. Ng3 {[%clk 0:00:59.2]} 19...
Rh8 {[%clk 0:01:47.2]} 20. Bxd5 {[%clk 0:00:24.1]} 20... cxd5 {[%clk 0:01:45.4]}
21. Kg2 {[%clk 0:00:20.3]} 21... Qh4 {[%clk 0:01:32]} 22. Rh1 {[%clk 0:00:20.3]}
22... Qh3+ {[%clk 0:01:31.3]} 23. Kg1 {[%clk 0:00:20]} 23... Bd6 {[%clk
0:01:28.8]} 24. Rc1 {[%clk 0:00:19.1]} 24... Rac8 {[%clk 0:01:22.7]} 25. Qd2
{[%clk 0:00:18.2]} 25... Bf4 {[%clk 0:01:18.1]} 0-1

[Event "*** Titled Tuesday Blitz"]
[Site "Chess.com"]
[Date "2020.05.26"]
[Round "4"]
[White "Tlerus"]
[Black "WeAintSurePal"]
[Result "1-0"]
[WhiteElo "2595"]
[BlackElo "2324"]
[TimeControl "180+1"]
[EndTime "10:37:13 PDT"]
[Termination "Tlerus won by checkmate"]

1. e4 {[%clk 0:03:00.9]} 1... c6 {[%clk 0:02:58.2]} 2. d4 {[%clk 0:03:00.5]}
2... d5 {[%clk 0:02:58.2]} 3. Bf4 {[%clk 0:03:00]} 3... dxe4 {[%clk 0:02:57.1]}
4. Nc3 {[%clk 0:03:00]} 4... Nf6 {[%clk 0:02:57.3]} 5. f3 {[%clk 0:02:59.8]}
5... exf3 {[%clk 0:02:56.7]} 6. Nxf3 {[%clk 0:03:00.1]} 6... Bg4 {[%clk
0:02:56]} 7. Bd3 {[%clk 0:02:57.6]} 7... e6 {[%clk 0:02:46]} 8. Qd2 {[%clk
0:02:55.3]} 8... Bb4 {[%clk 0:02:43.8]} 9. O-O-O {[%clk 0:02:52.6]} 9... Nd5
{[%clk 0:02:40.2]} 10. Bc4 {[%clk 0:02:50]} 10... Bxc3 {[%clk 0:02:21.8]} 11.
bxc3 {[%clk 0:02:48.8]} 11... Qa5 {[%clk 0:02:20.5]} 12. Kb2 {[%clk 0:02:43.2]}
12... Nd7 {[%clk 0:02:18.1]} 13. Bb3 {[%clk 0:02:41]} 13... N7f6 {[%clk
0:02:09.4]} 14. Rhe1 {[%clk 0:02:29.4]} 14... O-O-O {[%clk 0:01:19.4]} 15. Bg3
{[%clk 0:02:21.8]} 15... Bf5 {[%clk 0:01:08.7]} 16. Ne5 {[%clk 0:02:18.8]} 16...
Rhf8 {[%clk 0:01:03.5]} 17. Nc4 {[%clk 0:02:17.6]} 17... Qa6 {[%clk 0:01:00]}
18. Nd6+ {[%clk 0:02:16.5]} 18... Rxd6 {[%clk 0:00:54.8]} 19. Bxd6 {[%clk
0:02:17.4]} 19... Rd8 {[%clk 0:00:51.8]} 20. Bg3 {[%clk 0:02:16]} 20... Ne4
{[%clk 0:00:50.9]} 21. Rxe4 {[%clk 0:02:08.9]} 21... Bxe4 {[%clk 0:00:50.5]} 22.
Re1 {[%clk 0:02:01.7]} 22... Bg6 {[%clk 0:00:45.3]} 23. c4 {[%clk 0:01:57.6]}
23... Nb6 {[%clk 0:00:44.4]} 24. Qf4 {[%clk 0:01:55.3]} 24... Kd7 {[%clk
0:00:42.8]} 25. d5 {[%clk 0:01:38.2]} 25... cxd5 {[%clk 0:00:15.6]} 26. cxd5
{[%clk 0:01:33.1]} 26... Qa5 {[%clk 0:00:12.1]} 27. dxe6+ {[%clk 0:01:30.5]}
27... fxe6 {[%clk 0:00:09.3]} 28. Bxe6+ {[%clk 0:01:27.4]} 28... Ke8 {[%clk
0:00:08.4]} 29. Bd7+ {[%clk 0:01:23.3]} 29... Kxd7 {[%clk 0:00:08.1]} 30. Qc7#
{[%clk 0:01:23.3]} 1-0

[Event "*** Titled Tuesday Blitz"]
[Site "Chess.com"]
[Date "2020.05.26"]
[Round "4"]
[White "Nikolaj_6"]
[Black "Hydrargyrum_Girl"]
[Result "0-1"]
[WhiteElo "2519"]
[BlackElo "2354"]
[TimeControl "180+1"]
[EndTime "10:37:13 PDT"]
[Termination "Hydrargyrum_Girl won by resignation"]

1. e4 {[%clk 0:03:00.9]} 1... c5 {[%clk 0:02:58.5]} 2. Nf3 {[%clk 0:02:59.4]}
2... e6 {[%clk 0:02:58.5]} 3. c3 {[%clk 0:02:58.6]} 3... Nf6 {[%clk 0:02:43.4]}
4. e5 {[%clk 0:02:57.3]} 4... Nd5 {[%clk 0:02:43.1]} 5. d4 {[%clk 0:02:57.9]}
5... cxd4 {[%clk 0:02:42.6]} 6. cxd4 {[%clk 0:02:58.5]} 6... Bb4+ {[%clk
0:02:41.3]} 7. Bd2 {[%clk 0:02:54.5]} 7... Bxd2+ {[%clk 0:02:41.2]} 8. Qxd2
{[%clk 0:02:53.2]} 8... d6 {[%clk 0:02:39.9]} 9. Bd3 {[%clk 0:02:50.4]} 9... Nc6
{[%clk 0:02:37.4]} 10. O-O {[%clk 0:02:49.8]} 10... O-O {[%clk 0:02:35.4]} 11.
Nc3 {[%clk 0:02:33.4]} 11... dxe5 {[%clk 0:02:29]} 12. dxe5 {[%clk 0:02:31.2]}
12... Ndb4 {[%clk 0:02:26.7]} 13. Rad1 {[%clk 0:02:21.8]} 13... Nxd3 {[%clk
0:02:24.5]} 14. Qxd3 {[%clk 0:02:22.4]} 14... Qxd3 {[%clk 0:02:24]} 15. Rxd3
{[%clk 0:02:23]} 15... b6 {[%clk 0:02:24.6]} 16. Rfd1 {[%clk 0:02:20.7]} 16...
Ne7 {[%clk 0:02:19.9]} 17. Ng5 {[%clk 0:02:14.4]} 17... Ng6 {[%clk 0:02:17.3]}
18. Re1 {[%clk 0:02:08]} 18... Bb7 {[%clk 0:02:16.8]} 19. g3 {[%clk 0:02:07.8]}
19... Rad8 {[%clk 0:02:15.8]} 20. Rxd8 {[%clk 0:02:04.4]} 20... Rxd8 {[%clk
0:02:16.7]} 21. f4 {[%clk 0:02:04.7]} 21... Rd2 {[%clk 0:02:14.9]} 22. Re2
{[%clk 0:02:04.8]} 22... Rxe2 {[%clk 0:02:14.8]} 23. Nxe2 {[%clk 0:02:05]} 23...
h6 {[%clk 0:02:14.4]} 24. Nh3 {[%clk 0:02:04.9]} 24... Ne7 {[%clk 0:02:14.9]}
25. Nc3 {[%clk 0:02:03.3]} 25... Kf8 {[%clk 0:02:13.1]} 26. Kf2 {[%clk
0:02:03.4]} 26... Ke8 {[%clk 0:02:11.5]} 27. Ke3 {[%clk 0:02:01.4]} 27... Kd7
{[%clk 0:02:09.6]} 28. Nf2 {[%clk 0:02:01.2]} 28... Nf5+ {[%clk 0:02:09.1]} 29.
Kd3 {[%clk 0:01:59.5]} 29... Ba6+ {[%clk 0:02:07.6]} 30. Kd2 {[%clk 0:01:56.3]}
30... Bb7 {[%clk 0:02:07.4]} 31. g4 {[%clk 0:01:50]} 31... Nh4 {[%clk
0:02:05.4]} 32. Ke2 {[%clk 0:01:34.3]} 32... f6 {[%clk 0:02:04.4]} 33. exf6
{[%clk 0:01:33.6]} 33... gxf6 {[%clk 0:02:05.1]} 34. h3 {[%clk 0:01:30]} 34...
e5 {[%clk 0:02:01.1]} 35. fxe5 {[%clk 0:01:29.7]} 35... fxe5 {[%clk 0:02:02]}
36. Kd3 {[%clk 0:01:22.5]} 36... Ng2 {[%clk 0:01:59.4]} 37. Nce4 {[%clk
0:01:17.5]} 37... Nf4+ {[%clk 0:01:58.8]} 38. Ke3 {[%clk 0:01:16.2]} 38... Ke6
{[%clk 0:01:59]} 39. h4 {[%clk 0:01:14.8]} 39... Ng2+ {[%clk 0:01:56.9]} 40. Kf3
{[%clk 0:01:13.8]} 40... Nxh4+ {[%clk 0:01:57.8]} 41. Kg3 {[%clk 0:01:14.1]}
41... Ng6 {[%clk 0:01:56.4]} 42. Nc3 {[%clk 0:01:14.6]} 42... Nf4 {[%clk
0:01:55.9]} 43. Kh4 {[%clk 0:01:11.6]} 43... a6 {[%clk 0:01:54.8]} 44. g5 {[%clk
0:01:10.3]} 44... hxg5+ {[%clk 0:01:53.2]} 45. Kxg5 {[%clk 0:01:10.7]} 45... b5
{[%clk 0:01:49.4]} 46. b4 {[%clk 0:01:09.7]} 46... Nd5 {[%clk 0:01:45.8]} 47.
Nxd5 {[%clk 0:01:05.5]} 47... Bxd5 {[%clk 0:01:45.7]} 48. a3 {[%clk 0:01:04.7]}
48... Bf3 {[%clk 0:01:44.6]} 49. Kh4 {[%clk 0:01:04.2]} 49... Kd5 {[%clk
0:01:44.8]} 50. Kg3 {[%clk 0:01:04.5]} 50... e4 {[%clk 0:01:44.8]} 51. Kf4
{[%clk 0:01:04.6]} 51... Kc4 {[%clk 0:01:44.9]} 52. Ke3 {[%clk 0:01:04.8]} 52...
Kb3 {[%clk 0:01:45.2]} 53. Kd4 {[%clk 0:01:04.9]} 53... Kxa3 {[%clk 0:01:45.6]}
54. Kc3 {[%clk 0:01:05.4]} 54... e3 {[%clk 0:01:44.8]} 55. Nd3 {[%clk
0:01:04.6]} 55... e2 {[%clk 0:01:44.5]} 56. Ne1 {[%clk 0:01:04.7]} 56... Be4
{[%clk 0:01:44.8]} 57. Kd2 {[%clk 0:01:02.6]} 57... Kxb4 {[%clk 0:01:44.1]} 58.
Kxe2 {[%clk 0:01:03.2]} 58... a5 {[%clk 0:01:42.3]} 59. Kd2 {[%clk 0:01:03.2]}
59... a4 {[%clk 0:01:42.3]} 60. Kc1 {[%clk 0:01:03.7]} 60... Kb3 {[%clk
0:01:42.4]} 0-1

[Event "*** Titled Tuesday Blitz"]
[Site "Chess.com"]
[Date "2020.05.26"]
[Round "4"]
[White "BaMBoMaTTo"]
[Black "Piotrek1979"]
[Result "1-0"]
[WhiteElo "2680"]
[BlackElo "2411"]
[TimeControl "180+1"]
[EndTime "10:37:14 PDT"]
[Termination "BaMBoMaTTo won by resignation"]

1. e4 {[%clk 0:03:00]} 1... c6 {[%clk 0:03:00]} 2. d4 {[%clk 0:03:00.2]} 2... d5
{[%clk 0:03:00.6]} 3. e5 {[%clk 0:02:59.6]} 3... Bf5 {[%clk 0:02:59.1]} 4. Nf3
{[%clk 0:02:59.7]} 4... e6 {[%clk 0:02:59.2]} 5. Be2 {[%clk 0:02:59.5]} 5... Nd7
{[%clk 0:02:57.7]} 6. O-O {[%clk 0:02:59.5]} 6... Ne7 {[%clk 0:02:57.6]} 7. Nbd2
{[%clk 0:02:59]} 7... h6 {[%clk 0:02:56]} 8. Nb3 {[%clk 0:02:59.1]} 8... b6
{[%clk 0:02:55.1]} 9. a4 {[%clk 0:02:46.6]} 9... a5 {[%clk 0:02:54.7]} 10. Nh4
{[%clk 0:02:39]} 10... Be4 {[%clk 0:02:45]} 11. f3 {[%clk 0:02:38]} 11... Bxc2
{[%clk 0:02:34.5]} 12. Qxc2 {[%clk 0:02:37.2]} 12... g5 {[%clk 0:02:35.2]} 13.
Nf5 {[%clk 0:02:12.3]} 13... exf5 {[%clk 0:02:21.4]} 14. f4 {[%clk 0:02:11.6]}
14... g4 {[%clk 0:01:52.8]} 15. Bd3 {[%clk 0:02:11.8]} 15... g3 {[%clk
0:01:47.2]} 16. h3 {[%clk 0:02:05.3]} 16... Bg7 {[%clk 0:01:24.4]} 17. Bxf5
{[%clk 0:02:05.5]} 17... Nf8 {[%clk 0:01:24.2]} 18. Bd3 {[%clk 0:01:58.7]} 18...
Qc7 {[%clk 0:00:57.6]} 19. f5 {[%clk 0:01:57.5]} 19... f6 {[%clk 0:00:57.5]} 20.
e6 {[%clk 0:01:49.6]} 20... Nh7 {[%clk 0:00:52.9]} 21. Bf4 {[%clk 0:01:49.4]}
21... Qb7 {[%clk 0:00:52.7]} 22. h4 {[%clk 0:01:40]} 22... h5 {[%clk 0:00:50.6]}
23. Rf3 {[%clk 0:01:26.7]} 23... Nf8 {[%clk 0:00:45.2]} 24. Qd2 {[%clk
0:01:20.9]} 24... O-O-O {[%clk 0:00:19.4]} 25. Rc1 {[%clk 0:01:20.5]} 1-0